Workbook

Sheet دراسة فندق
B2: ادخل اسم الفندق المراد دراسته
B4: ادخال البيانات (حساب موسمي فقط ) | F4: البيانات والقيم المالية
F5: نسبة الاشغال | G5: عدد الاسرة/ الغرف | H5: قيمة البيع | I5: مجموع خلال الفترة | J5: اجمالي الموسم | K5: ضريبة مسار15% +2.5% إيواء | L5: مبلغ البيع مخصوم الضريبة | M5: مفتاح الضريبة | N5: عدد الأشهر
D6: موسم الحج | F6: 1 | G6: =B14 -> 271 | H6: =D14 -> 3000 | I6: =H6*G6*F6 -> 813000 | J6: =I6 -> 813000 | K6: =(I6-((I6/(15+100)*100))+(I6-(I6/(2.5+100)*100)))*M6 -> 1258.727466 | L6: =I6-K6 -> 811741.2725 | M6: 0.01 | N6: 1
D7: موسم رمضان | F7: 0.95 | G7: =B16 -> 61 | H7: =(D16/30)+H10 -> 90 | I7: =H7*G7*F7 -> 5215.5 | J7: =I7*30 -> 156465 | K7: =(J7-((J7/(15+100)*100))+(J7-(J7/(2.5+100)*100)))*M7 -> 242.2469777 | L7: =J7-K7 -> 156222.753 | M7: 0.01 | N7: 1
D8: مواسم العمرة | F8: 0.5 | G8: =G7*F8 -> 30.5 | H8: =(H7/2)+H11 -> 45 | I8: =H8*G8 -> 1372.5 | J8: =I8*30*N8 -> 288225 | K8: =(J8-((J8/(15+100)*100))+(J8-(J8/(2.5+100)*100)))*M8 -> 446.2444327 | L8: =J8-K8 -> 287778.7556 | M8: 0.01 | N8: 7
D9: التحكم بقيمة البيع للغرفة | F9: القيمة | H9: (-) أو (+)
F10: موسم رمضان
F11: مواسم العمرة
G12: حساب مصروفات الموظفين للموسم
B13: عدد الأسرة | C13: الحج | D13: قيمة البيع للسرير | F13: مشرف فندق | G13: 1 | J13: عدد موظف الاستقبال | K13: 1 | N13: مجموع الرواتب
B14: 271 | D14: 3000 | F14: الراتب | G14: 3500 | J14: عدد حراس الامن | K14: 1 | N14: =((G13*G14)+(G15*G16)+(K13*K15)+(K14*K15)) -> 14000
B15: عدد الغرف | C15: رمضان | D15: قيمة البيع للغرفة شهري | F15: عدد عمال النظافة | G15: 1 | J15: الراتب | K15: 4000 | N15: طوارئ 15%
B16: 61 | D16: 2700 | F16: الراتب | G16: 2500 | J16: مجموع الرواتب الموسمية + الطوارئ | L16: =((G13*G14)+(G15*G16)+(K13*K15)+(K14*K15))+N16 -> 16100 | N16: =N14*15% -> 2100
B17: راتب مشرف الفندق | D17: حارس الأمن والاستقبال | F17: العمالة الدائمة | G17: عدد الموظفين | H17: الراتب | K17: الدخل قبل التصفية
F18: مشرف فندق | G18: 1 | H18: 1500 | I18: مجموع الرواتب | K18: سعر البيع لمواسم العمرة مخصوم الضريبة | M18: =L8 -> 287778.7556
B19: راتب عامل النظافة | D19: الدلاله | F19: عامل صيانة | G19: 1 | H19: 1500 | I19: =((G18*H18)+(G19*H19)+(G20*H20)+(G21*H21))*12 -> 72000 | K19: اجمالي سعر البيع للحج مخصوم الضريبة | M19: =L6 -> 811741.2725
F20: عامل نظافة | G20: 1 | H20: 1500 | I20: احتياطي طوارئ 5% | K20: اجمالي سعر البيع لرمضان مخصوم الضريبة | M20: =L7 -> 156222.753
B21: احتياطي طوارئ + مشتريات | D21: نسبة الايجار | F21: حارس فندق | G21: 1 | H21: 1500 | I21: =I19*10% -> 7200 | K21: اختياطي الطوارئ والمشتريات | M21: =(M19+M20+M18)*B22 -> 125574.2781
B22: 0.1 | D22: 0.7 | F22: مجموع الرواتب 12 اشهر * 5% | H22: =(((G18*H18)+(G19*H19)+(G20*H20)+(G21*H21))*12)+I21 -> 79200
B24: بيانات إضافية | F24: دخل النشاط بعد خصم المصروفات التشغيلية والرواتب والضرائب | L24: إضافة دخل موسم العمرة | M24: الموسم | N24: صافي الدخل
M25: الحج | N25: =M19-(مصاريف!H31+L16) -> 733551.6225
B26: نسبة تشغيل | D26: العوائد | L26: FALSE | M26: رمضان | N26: =M20-(مصاريف!G31+L16) -> 107971.053
B27: 0.2 | D27: =M36*B27 -> 24212.35781 | L27: =IF(L28>0,"مفعل","غير مفعل") -> غير مفعل | M27: مواسم العمرة | N27: =M18-(مصاريف!I31+((L16/2)*N8)) -> 51379.23557
L28: =COUNTIF(L26,TRUE) -> 0 | M28: الطوارئ | N28: =M21 -> 125574.2781
B29: نسبة الزكاة | D29: مبلغ الزكاة | L29: =N27*L28 -> 0 | M29: المجموع | N29: =(N25+N26+L29)-(N28+H22) -> 636748.3974
B30: 0.025 | D30: =(N29-M34)*B30 -> 3104.148438
F31: ايجار الفندق | K31: نسبة الايجار من اجمالي الدخل | M31: =D22 -> 0.7
K32: ايجار الفندق | M32: =N29*M31 -> 445723.8782
K33: ضريبة الايجار | M33: =M32*15% -> 66858.58173
B34: حساب الدخل بمعرفة سعر الايجار | K34: الايجار شامل الضريبة | M34: =M32+M33 -> 512582.4599
B35: سعر الايجار | K35: الطوارئ | M35: =N28 -> 125574.2781 | N35: =M35+M36 -> 246636.0672
B36: عدد الأسرة | F36: العوائد المتوقعه | M36: =(N29-M34-D30) -> 121061.7891
B37: الناتج | D37: =D35/D36 ->  | F37: سعر الإيجــــــــــــــــــــــــــــــــار شامل الضريبة | M37: =M34 -> 512582.4599

Sheet مصاريف
B3: دراسة تقديرية لمتوسط بنود الصرف على الفرد
B4: متوسط بنود الصرف
B5: الاساسية | C5: التفاصيل | D5: نسبة الاستهلاك للسنه | E5: عدد | F5: قيمة/يوم | G5: تكلفة شهر رمضان | H5: الحج تكلفة 20 يوم | I5: تكلفة مواسم العمرة
B6: مصاريف تشغيل (موسمية) | C6: كهرياء | D6: 0.7 | E6: ='دراسة فندق'!$G$7 -> 61 | F6: 6 | G6: =E6*F6*30 -> 10980 | H6: =E6*F6*20 -> 7320 | I6: =G6*8*$D$6 -> 61488
C7: مياه | E7: ='دراسة فندق'!$G$7 -> 61 | F7: 4 | G7: =E7*F7*30 -> 7320 | H7: =E7*F7*20 -> 4880 | I7: =G7*8*$D$6 -> 40992
C8: هواتف وانترنت | E8: 4 | F8: 30 | G8: =E8*F8*30 -> 3600 | H8: =E8*F8*20 -> 2400 | I8: 20160
C9: المغسلة 4غسله بالشهر | E9: ='دراسة فندق'!G6 -> 271 | F9: 3 | G9: =E9*F9*4 -> 3252 | H9: =E9*F9*3 -> 2439 | I9: 18211.2
C10: مناديل 8 تغييرات بالشهر | E10: ='دراسة فندق'!G7 -> 61 | F10: 2 | G10: =E10*F10*8 -> 976 | H10: =E10*F10*6 -> 732 | I10: 5465.6
C11: مواد النظافة | E11: ='دراسة فندق'!G7 -> 61 | F11: 30 | G11: =E11*F11 -> 1830 | H11: =E11*F11/1.5 -> 1220 | I11: 10248
G12: =E12*F12*30 -> 0 | H12: =E12*F12*20 -> 0 | I12: 0
G13: 0 | H13: 0 | I13: 0
G14: 0 | H14: 0 | I14: 0
G15: 0 | H15: 0 | I15: 0
G16: 0 | H16: 0 | I16: 0
G17: 0 | H17: 0 | I17: 0
G18: 0 | H18: 0 | I18: 0
G19: 0 | H19: 0 | I19: 0
G20: 0 | H20: 0 | I20: 0
C21: تصريح حج | E21: 30000 | G21: 0 | H21: =E21 -> 30000 | I21: 0
C22: سجل فندق | E22: 5000 | G22: 0 | H22: =E22 -> 5000 | I22: 0
C23: أخرى | G23: 0 | H23: =E23*F23*20 -> 0 | I23: 0
G24: 0 | H24: =E24*F24*20 -> 0 | I24: 0
G25: 0 | H25: =E25*F25*20 -> 0 | I25: 0
B26: المجموع | G26: =SUM(G6:G25) -> 27958 | H26: =SUM(H6:H25) -> 53991 | I26: =SUM(I6:I25) -> 156564.8
B29: مقدار الضريبة | G29: =G26*15% -> 4193.7 | H29: =H26*15% -> 8098.65 | I29: =I26*15% -> 23484.72
B31: الإجمالي | G31: =G26+G29 -> 32151.7 | H31: =H26+H29 -> 62089.65 | I31: =I26+I29 -> 180049.52
